fUSD/lending_fUSD_20240720
["ID","MTS","AMOUNT","RATE_DAILY","PERIOD"]
[332701547,1721454681616,-500.0,0.00033698,14]
[332701548,1721454681627,-1175.99,0.00033698,14]
[332701549,1721454681639,-1086.49,0.00033698,14]
[332701550,1721454681651,-500.0,0.00033698,14]
[332701551,1721454681662,-5650.95,0.00033698,14]
[332701552,1721454681673,-500.0,0.00033698,14]
[332701553,1721454681684,-1142.16,0.00033698,14]
[332701554,1721454681695,-1786.18,0.00033698,14]
[332701555,1721454681707,-500.0,0.00033698,14]
[332701556,1721454681719,-2100.12,0.00033698,14]
[332701557,1721454681731,-1501.2,0.00033698,14]
[332701558,1721454681744,-500.0,0.00033698,14]
[332701559,1721454681756,-1938.55,0.00033698,14]
[332701560,1721454681768,-500.0,0.00033698,14]
[332701561,1721454681779,-2226.11,0.00033698,14]
[332701562,1721454681790,-1032.15,0.00033698,14]
[332701563,1721454681802,-521.36,0.00033698,14]
[332701564,1721454681814,-1134.15,0.00033698,14]
[332701565,1721454681830,-500.0,0.00033698,14]
[332701566,1721454681841,-268.26554763,0.00033698,14]
[332701567,1721454681853,-1135.66,0.00033698,14]
[332701568,1721454681865,-2533.76,0.00033698,14]
[332701569,1721454681877,-1145.69,0.00033698,14]
[332701570,1721454681889,-500.0,0.00033698,14]
[332701571,1721454681901,-2293.46,0.00033698,14]
[332701572,1721454681913,-500.0,0.00033698,14]
[332701573,1721454681924,-1398.34,0.00033698,14]
[332701574,1721454681936,-500.0,0.00033698,14]
[332701575,1721454681948,-500.0,0.00033698,14]
[332701576,1721454681959,-500.0,0.00033698,14]
[332701577,1721454681971,-500.0,0.00033698,14]
[332701578,1721454681983,-737.88,0.00033698,14]
[332701579,1721454681995,-2614.44,0.00033698,14]
[332701580,1721454682007,-5859.34,0.00033698,14]
[332701581,1721454682019,-500.0,0.00033698,14]
[332701582,1721454682031,-1642.7,0.00033698,14]
[332701583,1721454682044,-1741.27,0.00033698,14]
[332701584,1721454682055,-500.0,0.00033698,14]
[332701585,1721454682066,-500.0,0.00033698,14]
[332701586,1721454682077,-2773.2,0.00033698,14]
[332701587,1721454682088,-3787.44,0.00033698,14]
[332701588,1721454682100,-500.0,0.00033698,14]
[332701589,1721454682112,-1211.76,0.00033698,14]
[332701590,1721454682123,-500.0,0.00033698,14]
[332701591,1721454682135,-179.03250141,0.00033698,14]
[332701592,1721454682147,-1228.2,0.00033698,14]
[332701593,1721454682158,-3015.83,0.00033698,14]
[332701594,1721454682171,-500.0,0.00033698,14]
[332701595,1721454682182,-549.5,0.00033698,14]
[332701596,1721454682194,-1839.95,0.00033698,14]
[332701597,1721454682205,-500.0,0.00033698,14]
[332701598,1721454682216,-4715.96,0.00033698,14]
[332701599,1721454682228,-1400.64,0.00033698,14]
[332701600,1721454682240,-1206.1,0.00033698,14]
[332701601,1721454682251,-4676.71,0.00033698,14]
[332701602,1721454682262,-548.71195975,0.00033698,14]
[332701603,1721454682273,-500.0,0.00033698,14]
[332701604,1721454682284,-1817.98,0.00033698,14]
[332701605,1721454682296,-2336.53,0.00033698,14]
[332701606,1721454682308,-500.0,0.00033698,14]
[332701607,1721454682323,-500.0,0.00033698,14]
[332701608,1721454682334,-548.56,0.00033698,14]
[332701609,1721454682347,-973.73,0.00033698,14]
[332701610,1721454682359,-500.0,0.00033698,14]
[332701611,1721454682371,-500.0,0.00033698,14]
[332701612,1721454682383,-1677.83,0.00033698,14]
[332701613,1721454682397,-500.0,0.00033698,14]
[332701614,1721454682408,-6108.97,0.00033698,14]
[332701615,1721454682420,-854.29,0.00033698,14]
[332701616,1721454682431,-2035.71,0.00033698,14]
[332701617,1721454682443,-847.09,0.00033698,14]
[332701618,1721454682454,-1731.46,0.00033698,14]
[332701619,1721454682466,-1464.29,0.00033698,14]
[332701620,1721454682477,-500.0,0.00033698,14]
[332701621,1721454682489,-1151.43,0.00033698,14]
[332701622,1721454682500,-3051.07,0.00033698,14]
[332701623,1721454682512,-500.0,0.00033698,14]
[332701624,1721454682524,-500.0,0.00033698,14]
[332701625,1721454682535,-1584.59,0.00033698,14]
[332701626,1721454682547,-500.0,0.00033698,14]
[332701627,1721454682559,-500.0,0.00033698,14]
[332701628,1721454682570,-849.3,0.00033698,14]
[332701629,1721454682582,-500.0,0.00033698,14]
[332701630,1721454682594,-2302.64,0.00033698,14]
[332701631,1721454682607,-1810.06,0.00033698,14]
[332701632,1721454682618,-1313.44,0.00033698,14]
[332701633,1721454682629,-1741.63,0.00033698,14]
[332701634,1721454682641,-500.0,0.00033698,14]
[332701635,1721454682653,-1800.63,0.00033698,14]
[332701636,1721454682664,-1714.61,0.00033698,14]
[332701637,1721454682676,-765.66,0.00033698,14]
[332701638,1721454682687,-590.13,0.00033698,14]
[332701639,1721454682699,-238.17361648,0.00033698,14]
[332701640,1721454682711,-500.0,0.00033698,14]
[332701641,1721454682723,-2127.68,0.00033698,14]
[332701642,1721454682734,-1128.24,0.00033698,14]
[332701643,1721454682746,-2564.99,0.00033698,14]
[332701644,1721454682757,-500.0,0.00033698,14]
[332701645,1721454682768,-500.0,0.00033698,14]
[332701646,1721454682780,-1400.32,0.00033698,14]
[332701647,1721454682791,-4037.22,0.00033698,14]
[332701648,1721454682804,-3316.95,0.00033698,14]
[332701649,1721454682817,-2915.67,0.00033698,14]
[332701650,1721454682830,-5225.32,0.00033698,14]
[332701651,1721454682842,-520.45,0.00033698,14]
[332701652,1721454682855,-1197.24,0.00033698,14]
[332701653,1721454682869,-500.0,0.00033698,14]
[332701654,1721454682880,-500.0,0.00033698,14]
[332701655,1721454682892,-306.18,0.00033698,14]
[332701656,1721454682903,-398.716556,0.00033698,7]
[332701657,1721454682915,-1278.14,0.00033698,14]
[332701658,1721454682926,-627.4,0.00033698,14]
[332701659,1721454682938,-1021.45,0.00033698,14]
[332701660,1721454682949,-398.716556,0.00033698,7]
[332701661,1721454682960,-3741.74,0.00033698,14]
[332701662,1721454682973,-1542.96,0.00033698,14]
[332701663,1721454682986,-1183.46,0.00033698,14]
[332701664,1721454682997,-500.0,0.00033698,14]
[332701665,1721454683009,-3179.57,0.00033698,14]
[332701666,1721454683020,-2362.42,0.00033698,14]
[332701667,1721454683032,-500.0,0.00033698,14]
[332701668,1721454683045,-580.26,0.00033698,14]
[332701669,1721454683057,-1759.26,0.00033698,14]
[332701670,1721454683068,-500.0,0.00033698,14]
[332701671,1721454683079,-500.0,0.00033698,14]
[332701672,1721454683091,-164.1714457,0.00033698,14]
[332701673,1721454683103,-2073.67,0.00033698,14]
[332701674,1721454683115,-894.23,0.00033698,14]
[332701675,1721454683127,-597.84,0.00033698,14]
[332701676,1721454683139,-1991.91,0.00033698,14]
[332701677,1721454683150,-526.0,0.00033698,14]
[332701678,1721454683161,-500.0,0.00033698,14]
[332701679,1721454683173,-508.99,0.00033698,14]
[332701680,1721454683184,-794.95,0.00033698,14]
[332701681,1721454683196,-2931.11,0.00033698,14]
[332701682,1721454683208,-1061.03,0.00033698,14]
[332701683,1721454683220,-3299.64,0.00033698,14]
[332701684,1721454683231,-500.0,0.00033698,14]
[332701685,1721454683243,-500.0,0.00033698,14]
[332701686,1721454683254,-553.59,0.00033698,14]
[332701687,1721454683266,-2732.87,0.00033698,14]
[332701688,1721454683277,-3412.35,0.00033698,14]
[332701689,1721454683289,-191.65459619,0.00033698,14]
[332701690,1721454683301,-655.9,0.00033698,14]
[332701691,1721454683314,-1247.29,0.00033698,14]
[332701692,1721454683727,-603.32,0.00033698,14]
[332701693,1721454683751,-3262.71,0.00033698,14]
[332701694,1721454683776,-500.0,0.00033698,14]
[332701695,1721454683792,-1103.45,0.00033698,14]
[332701696,1721454683801,-500.0,0.00033698,14]
[332701697,1721454683811,-500.0,0.00033698,14]
[332701698,1721454683820,-500.0,0.00033698,14]
[332701699,1721454683829,-500.0,0.00033698,14]
[332701700,1721454683839,-5572.1,0.00033698,14]
[332701701,1721454683848,-500.0,0.00033698,14]
[332701702,1721454683858,-1434.56,0.00033698,14]
[332701703,1721454683868,-637.98,0.00033698,14]
[332701704,1721454683877,-919.87,0.00033698,14]
[332701705,1721454683887,-1664.52,0.00033698,14]
[332701706,1721454683897,-3644.07,0.00033698,14]
[332701707,1721454683907,-1022.26,0.00033698,14]
[332701708,1721454683916,-500.0,0.00033698,14]
[332701709,1721454683925,-779.94,0.00033698,2]
[332701710,1721454683935,-1034.04,0.00033698,14]
[332701711,1721454683945,-491.97200869,0.00033698,14]
[332701712,1721454683955,-1720.23,0.00033698,14]
[332701713,1721454683964,-1856.75,0.00033698,14]
[332701714,1721454683974,-754.77,0.00033698,14]
[332701715,1721454683983,-500.0,0.00033698,14]
[332701716,1721454683992,-500.0,0.00033698,14]
[332701717,1721454684001,-4684.73,0.00033698,14]
[332701718,1721454684011,-1693.75,0.00033698,14]
[332701719,1721454684020,-7474.52,0.00033698,14]
[332701720,1721454684030,-657.06,0.00033698,14]
[332701721,1721454684039,-500.0,0.00033698,14]
[332701722,1721454684050,-1870.4,0.00033698,14]
[332701723,1721454684059,-1161.77,0.00033698,14]
[332701724,1721454684069,-2152.41,0.00033698,14]
[332701725,1721454684078,-500.0,0.00033698,14]
[332701726,1721454684088,-937.28,0.00033698,14]
[332701727,1721454684098,-500.0,0.00033698,14]
[332701728,1721454684107,-701.8,0.00033698,14]
[332701729,1721454684116,-1075.9,0.00033698,14]
[332701730,1721454684126,-814.24,0.00033698,14]
[332701731,1721454684136,-2205.62,0.00033698,14]
[332701732,1721454684145,-500.0,0.00033698,14]
[332701733,1721454684155,-500.0,0.00033698,14]
[332701734,1721454684165,-1321.01,0.00033698,14]
[332701735,1721454684174,-500.0,0.00033698,14]
[332701736,1721454684184,-726.47,0.00033698,14]
[332701737,1721454684193,-1940.5,0.00033698,14]
[332701738,1721454684202,-2223.29,0.00033698,14]
[332701739,1721454684212,-500.0,0.00033698,14]
[332701740,1721454684222,-508.52854593,0.00033698,14]
[332701741,1721454684232,-2571.47,0.00033698,14]
[332701742,1721454684243,-618.24,0.00033698,14]
[332701743,1721454684252,-503.1,0.00033698,14]
[332701744,1721454684262,-1012.39,0.00033698,14]
[332701745,1721454684271,-162.0,0.00033725,7]
[332701746,1721454684281,-326.19,0.00033823,2]
[332701747,1721454684291,-388.0165276,0.00033829,4]
[332701748,1721454684302,-226.44208051,0.00033972,14]
[332701749,1721454684313,-500.0,0.00033972,14]
[332701750,1721454684330,-500.0,0.00033972,14]
[332701751,1721454684340,-500.0,0.00033972,14]
[332701752,1721454684351,-330.2009007,0.00033972,14]
[332701753,1721454684360,-644.99639121,0.00033972,14]
[332701754,1721454684371,-500.0,0.00033972,14]
[332701755,1721454684381,-500.0,0.00033972,14]
[332701756,1721454684391,-500.0,0.00033972,14]
[332701757,1721454684401,-678.4,0.00033972,14]
[332701758,1721454684411,-500.0,0.00033972,14]
[332701759,1721454684420,-540.72,0.00033972,14]
[332701760,1721454684430,-500.0,0.00033972,14]
[332701761,1721454684440,-500.0,0.00033972,14]
[332701762,1721454684449,-626.62,0.00033972,14]
[332701763,1721454684459,-843.22,0.00033972,14]
[332701764,1721454684468,-589.60108173,0.00033972,14]
[332701765,1721454684478,-515.94289046,0.00033972,14]
[332701766,1721454684488,-264.79053879,0.00033972,14]
[332701767,1721454684497,-590.67,0.00033972,14]
[332701768,1721454684507,-581.23,0.00033972,14]
[332701769,1721454684517,-514.12,0.00033972,14]
[332701770,1721454684528,-375.22445478,0.00033972,14]
[332701771,1721454684537,-500.0,0.00033972,14]
[332701772,1721454684547,-637.85,0.00033972,14]
[332701773,1721454684557,-767.04,0.00033972,14]
[332701774,1721454684566,-500.0,0.00033972,14]
[332701775,1721454684576,-516.15137439,0.00033972,14]
[332701776,1721454684585,-500.0,0.00033972,14]
[332701777,1721454684595,-500.0,0.00033972,14]
[332701778,1721454684606,-500.0,0.00033972,14]
[332701779,1721454684616,-500.0,0.00033972,14]
[332701780,1721454684626,-500.0,0.00033972,14]
[332701781,1721454684635,-607.5,0.00033972,14]
[332701782,1721454684645,-694.38,0.00033972,14]
[332701783,1721454684655,-500.0,0.00033972,14]
[332701784,1721454684664,-500.0,0.00033972,14]
[332701785,1721454684674,-500.0,0.00033972,14]
[332701786,1721454684683,-500.0,0.00033972,14]
[332701787,1721454684692,-500.0,0.00033972,14]
[332701788,1721454684702,-500.0,0.00033972,14]
[332701789,1721454684711,-500.0,0.00033972,14]
[332701790,1721454684721,-500.0,0.00033972,14]
[332701791,1721454684730,-500.0,0.00033972,14]
[332701792,1721454684739,-500.0,0.00033972,14]
[332701793,1721454684748,-500.0,0.00033972,14]
[332701794,1721454684758,-500.0,0.00033972,14]
[332701795,1721454684767,-500.0,0.00033972,14]
[332701796,1721454684777,-530.52,0.00033972,14]
[332701797,1721454684787,-500.0,0.00033972,14]
[332701798,1721454684797,-500.0,0.00033972,14]
[332701799,1721454684806,-503.81,0.00033972,14]
[332701800,1721454684816,-500.0,0.00033972,14]
[332701801,1721454684826,-536.19,0.00033972,14]
[332701802,1721454684835,-523.0576654,0.00033972,14]
[332701803,1721454684845,-500.0,0.00033972,14]
[332701804,1721454684856,-500.0,0.00033972,14]
[332701805,1721454684865,-500.0,0.00033972,14]
[332701806,1721454684876,-500.0,0.00033972,14]
[332701807,1721454684885,-500.0,0.00033972,14]
[332701808,1721454684895,-500.0,0.00033972,14]
[332701809,1721454684905,-500.0,0.00033972,14]
[332701810,1721454684915,-500.0,0.00033972,14]
[332701811,1721454684925,-500.0,0.00033972,14]
[332701812,1721454684935,-500.0,0.00033972,14]
[332701813,1721454684945,-602.73,0.00033972,14]
[332701814,1721454684954,-155.95559066,0.00033972,14]
[332701815,1721454684964,-500.0,0.00033972,14]
[332701816,1721454684974,-694.11,0.00033972,14]
[332701817,1721454684983,-976.13,0.00033972,14]
[332701818,1721454684993,-586.56,0.00033972,14]
[332701819,1721454685002,-500.0,0.00033972,14]
[332701820,1721454685012,-231.77874834,0.00033972,14]
[332701821,1721454685022,-956.44,0.00033972,14]
[332701822,1721454685031,-500.0,0.00033972,14]
[332701823,1721454685041,-539.27698263,0.00033972,14]
[332701824,1721454685050,-546.24,0.00033972,14]
[332701825,1721454685060,-500.0,0.00033972,14]
[332701826,1721454685069,-597.63,0.00033972,14]
[332701827,1721454685079,-500.0,0.00033972,14]
[332701828,1721454685088,-500.0,0.00033972,14]
[332701829,1721454685098,-500.0,0.00033972,14]
[332701830,1721454685107,-578.97,0.00033972,14]
[332701831,1721454685117,-500.0,0.00033972,14]
[332701832,1721454685126,-500.0,0.00033972,14]
[332701833,1721454685135,-500.0,0.00033972,14]
[332701834,1721454685145,-500.0,0.00033972,14]
[332701835,1721454685154,-500.0,0.00033972,14]
[332701836,1721454685164,-500.0,0.00033972,14]
[332701837,1721454685173,-500.0,0.00033972,14]
[332701838,1721454685182,-500.0,0.00033972,14]
[332701839,1721454685192,-218.46117214,0.00033972,14]
[332701840,1721454685201,-1139.65,0.00033972,14]
[332701841,1721454685210,-500.0,0.00033972,14]
[332701842,1721454685220,-594.81,0.00033972,14]
[332701843,1721454685229,-1160.02,0.00033972,14]
[332701844,1721454685238,-533.4,0.00033972,14]
[332701845,1721454685248,-500.0,0.00033972,14]
[332701846,1721454685257,-1635.03,0.00033972,14]
[332701847,1721454685267,-419.56736413,0.00033972,14]
[332701848,1721454685276,-500.0,0.00033972,14]
[332701849,1721454685286,-874.14,0.00033972,14]
[332701850,1721454685295,-500.0,0.00033972,14]
[332701851,1721454685305,-500.0,0.00033972,14]
[332701852,1721454685316,-901.37,0.00033972,14]
[332701853,1721454685325,-829.22,0.00033972,14]
[332701854,1721454685335,-500.0,0.00033972,14]
[332701855,1721454685345,-500.0,0.00033972,14]
[332701856,1721454685354,-1308.18,0.00033972,14]
[332701857,1721454685363,-843.1,0.00033972,14]
[332701858,1721454685374,-635.71,0.00033972,14]
[332701859,1721454685383,-500.0,0.00033972,14]
[332701860,1721454685392,-876.85,0.00033972,14]
[332701861,1721454685403,-683.53,0.00033972,14]
[332701862,1721454685412,-935.95,0.00033972,14]
[332701863,1721454685423,-549.94929385,0.00033972,14]
[332701864,1721454685434,-500.0,0.00033972,14]
[332701865,1721454685446,-745.54,0.00033972,14]
[332701866,1721454685455,-636.69,0.00033972,14]
[332701867,1721454685466,-500.0,0.00033972,14]
[332701868,1721454685476,-500.0,0.00033972,14]
[332701869,1721454685486,-500.0,0.00033972,14]
[332701870,1721454685496,-500.0,0.00033972,14]
[332701871,1721454685506,-898.66,0.00033972,14]
[332701872,1721454685517,-500.0,0.00033972,14]
[332701873,1721454685528,-769.28,0.00033972,14]
[332701874,1721454685538,-1079.35,0.00033972,14]
[332701875,1721454685549,-710.01,0.00033972,14]
[332701876,1721454685558,-500.0,0.00033972,14]
[332701877,1721454685568,-500.0,0.00033972,14]
[332701878,1721454685578,-1222.45,0.00033972,14]
[332701879,1721454685588,-1172.59,0.00033972,14]
[332701880,1721454685598,-579.49,0.00033972,14]
[332701881,1721454685608,-500.0,0.00033972,14]
[332701882,1721454685616,-500.0,0.00033972,14]
[332701883,1721454685626,-1056.79,0.00033972,14]
[332701884,1721454685636,-807.94,0.00033972,14]
[332701885,1721454685647,-1358.25,0.00033972,14]
[332701886,1721454685657,-500.0,0.00033972,14]
[332701887,1721454685667,-1130.8,0.00033972,14]
[332701888,1721454685676,-870.92,0.00033972,14]
[332701889,1721454685686,-500.0,0.00033972,14]
[332701890,1721454685695,-500.0,0.00033972,14]
[332701891,1721454685705,-500.0,0.00033972,14]
[332701892,1721454685716,-236.66349033,0.00033972,14]
[332701893,1721454685726,-307.11926843,0.00033972,14]
[332701894,1721454685736,-500.0,0.00033972,14]
[332701895,1721454685748,-500.0,0.00033972,14]
[332701896,1721454685758,-500.0,0.00033972,14]
[332701897,1721454685768,-969.05,0.00033972,14]
[332701898,1721454685780,-500.0,0.00033972,14]
[332701899,1721454685791,-761.91,0.00033972,14]
[332701900,1721454685801,-642.69,0.00033972,14]
[332701901,1721454685810,-893.09,0.00033972,14]
[332701902,1721454685820,-500.0,0.00033972,14]
[332701903,1721454685829,-597.63,0.00033972,14]
[332701904,1721454685839,-500.0,0.00033972,14]
[332701905,1721454685849,-598.13,0.00033972,14]
[332701906,1721454685859,-500.0,0.00033972,14]
[332701907,1721454685868,-972.69,0.00033972,14]
[332701908,1721454685878,-500.0,0.00033972,14]
[332701909,1721454685889,-1697.94,0.00033972,14]
[332701910,1721454685899,-500.0,0.00033972,14]
[332701911,1721454685908,-500.0,0.00033972,14]
[332701912,1721454685918,-500.0,0.00033972,14]
[332701913,1721454685928,-561.67754482,0.00033972,14]
[332701914,1721454685938,-500.0,0.00033972,14]
[332701915,1721454685947,-1191.04,0.00033972,14]
[332701916,1721454685957,-500.0,0.00033972,14]
[332701917,1721454685967,-500.0,0.00033972,14]
[332701918,1721454685976,-502.32,0.00033972,14]
[332701919,1721454685986,-500.0,0.00033972,14]
[332701920,1721454685995,-500.0,0.00033972,14]
[332701921,1721454686005,-500.0,0.00033972,14]
[332701922,1721454686016,-500.0,0.00033972,14]
[332701923,1721454686025,-627.33,0.00033972,14]
[332701924,1721454686035,-500.0,0.00033972,14]
[332701925,1721454686045,-500.0,0.00033972,14]
[332701926,1721454686056,-1434.76,0.00033972,14]
[332701927,1721454686066,-500.0,0.00033972,14]
[332701928,1721454686076,-685.1,0.00033972,14]
[332701929,1721454686086,-500.0,0.00033972,14]
[332701930,1721454686095,-500.0,0.00033972,14]
[332701931,1721454686109,-689.63,0.00033972,14]
[332701932,1721454686119,-518.35,0.00033972,14]
[332701933,1721454686128,-690.62,0.00033972,14]
[332701934,1721454686140,-500.0,0.00033972,14]
[332701935,1721454686150,-1590.11,0.00033972,14]
[332701936,1721454686159,-763.13,0.00033972,14]
[332701937,1721454686169,-500.0,0.00033972,14]
[332701938,1721454686179,-559.09,0.00033972,14]
[332701939,1721454686189,-662.09,0.00033972,14]
[332701940,1721454686199,-500.0,0.00033972,14]
[332701941,1721454686208,-844.23,0.00033972,14]
[332701942,1721454686219,-531.67,0.00033972,14]
[332701943,1721454686228,-914.64,0.00033972,14]
[332701944,1721454686238,-500.0,0.00033972,14]
[332701945,1721454686248,-500.0,0.00033972,14]
[332701946,1721454686257,-647.26,0.00033972,14]
[332701947,1721454686267,-600.45,0.00033972,14]
[332701948,1721454686276,-1027.47,0.00033972,14]
[332701949,1721454686286,-500.0,0.00033972,14]
[332701950,1721454686295,-500.0,0.00033972,14]
[332701951,1721454686304,-613.0,0.00033972,14]
[332701952,1721454686316,-656.88,0.00033972,14]
[332701953,1721454686327,-633.44,0.00033972,14]
[332701954,1721454686338,-500.0,0.00033972,14]
[332701955,1721454686347,-1003.56,0.00033972,14]
[332701956,1721454686360,-521.29,0.00033972,14]
[332701957,1721454686369,-1014.61,0.00033972,14]
[332701958,1721454686379,-509.16141287,0.00033972,14]
[332701959,1721454686389,-749.61,0.00033972,14]
[332701960,1721454686399,-500.0,0.00033972,14]
[332701961,1721454686409,-1820.15,0.00033972,14]
[332701962,1721454686597,-500.0,0.00033972,14]
[332701963,1721454686616,-1418.41,0.00033972,14]
[332701964,1721454686625,-521.44,0.00033972,14]
[332701965,1721454686634,-1558.75,0.00033972,14]
[332701966,1721454686644,-500.0,0.00033972,14]
[332701967,1721454686653,-682.47,0.00033972,14]
[332701968,1721454686663,-500.0,0.00033972,14]
[332701969,1721454686672,-500.0,0.00033972,14]
[332701970,1721454686681,-1023.25,0.00033972,14]
[332701971,1721454686691,-814.54,0.00033972,14]
[332701972,1721454686700,-500.0,0.00033972,14]
[332701973,1721454686709,-1286.8,0.00033972,14]
[332701974,1721454686719,-500.0,0.00033972,14]
[332701975,1721454686728,-817.73,0.00033972,2]
[332701976,1721454686738,-1224.39,0.00033972,14]
[332701977,1721454686747,-500.0,0.00033972,14]
[332701978,1721454686756,-500.0,0.00033972,14]
[332701979,1721454686766,-796.27,0.00033972,14]
[332701980,1721454686775,-946.86,0.00033972,14]
[332701981,1721454686784,-901.79,0.00033972,14]
[332701982,1721454686793,-569.28,0.00033972,14]
[332701983,1721454686803,-500.0,0.00033972,14]
[332701984,1721454686812,-500.0,0.00033972,14]
[332701985,1721454686822,-500.0,0.00033972,14]
[332701986,1721454686831,-500.0,0.00033972,14]
[332701987,1721454686840,-940.39,0.00033972,14]
[332701988,1721454686850,-749.26,0.00033972,14]
[332701989,1721454686860,-674.35,0.00033972,14]
[332701990,1721454686869,-831.76,0.00033972,14]
[332701991,1721454686878,-749.98,0.00033972,14]
[332701992,1721454686887,-1280.8,0.00033972,14]
[332701993,1721454686897,-500.0,0.00033972,14]
[332701994,1721454686906,-1086.68,0.00033972,14]
[332701995,1721454686916,-1680.75,0.00033972,14]
[332701996,1721454686925,-500.0,0.00033972,14]
[332701997,1721454686934,-500.0,0.00033972,14]
[332701998,1721454686943,-773.69,0.00033972,14]
[332701999,1721454686953,-990.69,0.00033972,14]
[332702000,1721454686963,-598.66,0.00033972,14]
[332702001,1721454686973,-625.76,0.00033972,14]
[332702002,1721454686982,-500.0,0.00033972,14]
[332702003,1721454686991,-964.11,0.00033972,14]
[332702004,1721454687000,-798.13,0.00033972,14]
[332702005,1721454687010,-500.0,0.00033972,14]
[332702006,1721454687020,-679.12,0.00033972,14]
[332702007,1721454687029,-500.0,0.00033972,14]
[332702008,1721454687039,-1219.46,0.00033972,14]
[332702009,1721454687048,-500.0,0.00033972,14]
[332702010,1721454687057,-500.0,0.00033972,14]
[332702011,1721454687066,-500.0,0.00033972,14]
[332702012,1721454687075,-968.81,0.00033972,14]
[332702013,1721454687085,-500.0,0.00033972,14]
[332702014,1721454687095,-1098.81,0.00033972,14]
[332702015,1721454687107,-1573.39,0.00033972,14]
[332702016,1721454687116,-500.0,0.00033972,14]
[332702017,1721454687125,-736.88,0.00033972,14]
[332702018,1721454687134,-503.73,0.00033972,14]
[332702019,1721454687144,-500.0,0.00033972,14]
[332702020,1721454687153,-625.9,0.00033972,14]
[332702021,1721454687163,-955.41,0.00033972,14]
[332702022,1721454687172,-998.25,0.00033972,14]
[332702023,1721454687181,-557.41,0.00033972,14]
[332702024,1721454687191,-630.52,0.00033972,14]
[332702025,1721454687200,-500.0,0.00033972,14]
[332702026,1721454687209,-500.0,0.00033972,14]
[332702027,1721454687219,-1514.94,0.00033972,14]
[332702028,1721454687228,-765.78,0.00033972,14]
[332702029,1721454687238,-1959.07,0.00033972,14]
[332702030,1721454687247,-893.73,0.00033972,14]
[332702031,1721454687257,-731.02,0.00033972,14]
[332702032,1721454687266,-1268.47,0.00033972,14]
[332702033,1721454687276,-628.62,0.00033972,14]
[332702034,1721454687286,-707.75,0.00033972,14]
[332702035,1721454687296,-1899.18,0.00033972,14]
[332702036,1721454687306,-500.0,0.00033972,14]
[332702037,1721454687319,-749.43,0.00033972,14]
[332702038,1721454687328,-500.0,0.00033972,14]
[332702039,1721454687338,-1268.18,0.00033972,14]
[332702040,1721454687350,-500.0,0.00033972,14]
[332702041,1721454687360,-712.94,0.00033972,14]
[332702042,1721454687370,-858.57,0.00033972,14]
[332702043,1721454687379,-500.0,0.00033972,14]
[332702044,1721454687389,-1539.07,0.00033972,14]
[332702045,1721454687398,-792.24,0.00033972,14]
[332702046,1721454687410,-500.0,0.00033972,14]